bitfinex/quotes_ETHUSD_20260217
["timestamp","ask_amount","ask_price","bid_price","bid_amount"]
[1771342084318,0.545,1952.8,1951.9,0.48072065]
[1771342084518,0.922,1953.0,1952.1,0.48072065]
[1771342084733,0.545,1952.9,1952.1,0.48072065]
[1771342085041,1.467,1953.0,1952.1,0.48072065]
[1771342085256,0.922,1952.9,1952.1,0.48072065]
[1771342085410,0.922,1952.9,1951.8,1.84791849]
[1771342085605,0.922,1952.9,1951.9,0.48072065]
[1771342085839,0.922,1952.9,1952.1,0.48072065]
[1771342086036,0.922,1952.9,1952.3,0.48072065]
[1771342086614,0.922,1952.8,1952.3,0.48072065]
[1771342086845,1.466,1953.1,1952.3,0.48072065]
[1771342087037,1.466,1953.1,1952.2,1.28060649]
[1771342087252,0.922,1953.1,1952.2,1.28060649]
[1771342087432,0.922,1953.1,1952.1,1.28062158]
[1771342087433,0.544,1953.0,1952.1,1.28062158]
[1771342087742,0.922,1953.1,1952.1,1.28062158]
[1771342087928,1.28014747,1952.9,1952.1,1.28062158]
[1771342088110,1.28014747,1952.9,1952.0,0.48072065]
[1771342088311,0.922,1952.8,1951.8,0.5671]
[1771342088633,0.922,1952.8,1951.9,1.28076416]
[1771342089219,0.922,1952.8,1951.9,1.28186416]
[1771342089413,0.544,1952.7,1951.9,0.0011]
[1771342089826,0.922,1952.6,1951.9,0.0011]
[1771342090022,2.20238918,1952.6,1951.9,0.0011]
[1771342090724,0.544,1952.5,1951.9,0.0011]
[1771342091129,0.922,1952.4,1951.9,0.0011]
[1771342091340,0.922,1952.4,1951.9,0.48182065]
[1771342091526,6.89851007,1953.6,1951.9,0.48182065]
[1771342091527,0.544,1952.8,1951.9,0.48182065]
[1771342091842,1.28011064,1953.0,1951.9,0.48182065]
[1771342092043,0.544,1952.9,1952.1,0.48072065]
[1771342092448,0.922,1952.8,1952.1,0.48072065]
[1771342093042,1.2799128,1953.3,1952.1,0.48072065]
[1771342093257,0.922,1953.3,1952.3,0.48072065]
[1771342093424,0.922,1953.3,1952.6,0.48072065]
[1771342093816,2.20189442,1953.3,1952.6,0.48072065]
[1771342094016,2.20189442,1953.3,1952.5,1.28040973]
[1771342094219,2.20189796,1953.3,1952.5,1.28040973]
[1771342094457,0.922,1953.3,1952.6,0.47747529]
[1771342096082,0.923,1953.7,1952.5,1.28040973]
[1771342096083,0.48484088,1954.6,1953.2,6.79611007]
[1771342096364,1.27927585,1954.3,1953.2,0.566]
[1771342096563,1.82223089,1954.3,1953.2,1.04347529]
[1771342096782,1.27923194,1954.3,1953.2,1.04347529]
[1771342096946,1.27903481,1954.6,1953.3,0.47747529]
[1771342097289,1.27911307,1954.5,1953.3,0.47747529]
[1771342097585,1.2792491,1954.3,1953.3,0.47747529]
[1771342097884,1.2792491,1954.3,1953.2,0.566]
[1771342098079,5.11678808,1954.4,1953.3,1.27988532]
[1771342098566,0.542,1954.4,1953.3,1.27988532]
[1771342098861,0.542,1954.6,1953.4,0.47747529]
[1771342099162,1.82106196,1954.6,1953.4,0.47747529]
[1771342099365,1.2791006,1954.5,1953.3,1.27988532]
[1771342100230,1.82008408,1954.6,1953.3,1.27988532]
[1771342100438,1.2790999,1954.5,1953.3,1.27988532]
[1771342101055,0.001,1953.8,1953.3,1.75736061]
[1771342101364,2.30475178,1954.8,1953.5,6.79611007]
[1771342101562,2.30475178,1954.8,1953.6,0.568]
[1771342101563,11.62854488,1954.7,1953.6,0.568]
[1771342101764,0.48484088,1954.7,1953.6,0.568]
[1771342102253,1.76381727,1954.7,1953.7,1.27962327]
[1771342102453,1.27883779,1954.9,1953.7,1.27962327]
[1771342102657,0.541,1954.8,1953.7,1.27962327]
[1771342103463,3.667627,1954.8,1953.7,1.27962327]
[1771342103663,0.48484088,1954.7,1953.7,1.27962327]
[1771342104479,1.76381228,1954.7,1953.7,1.27962327]
[1771342105349,0.48484088,1954.7,1953.7,1.27962327]
[1771342105561,1.76381911,1954.7,1953.7,1.27962327]
[1771342106246,0.542,1954.6,1953.7,1.27962327]
[1771342107376,1.82088279,1954.9,1953.7,8.55320863]
[1771342107552,2.30572367,1954.9,1953.7,1.75709856]
[1771342107949,1.02684088,1954.9,1953.7,1.75709856]
[1771342108376,0.48484088,1954.7,1953.7,1.27962327]
[1771342110347,1.7638509,1954.7,1953.7,1.27962327]
[1771342110775,1.81990615,1954.8,1953.7,1.27962327]
[1771342110991,1.27890615,1954.8,1953.7,1.75709856]
[1771342111188,0.541,1954.7,1953.7,1.75709856]
[1771342112061,1.27887647,1954.9,1953.7,1.75709856]
[1771342112260,1.81995569,1954.8,1953.9,1.27949229]
[1771342112464,1.81995569,1954.8,1953.9,1.85449229]
[1771342112691,0.542,1954.8,1953.9,1.85449229]
[1771342112856,1.82090529,1954.8,1953.9,1.85449229]
[1771342113054,0.001,1954.8,1953.9,1.85449229]
[1771342113366,0.001,1954.8,1953.9,2.33196758]
[1771342113573,1.27991978,1954.8,1953.9,1.85449229]
[1771342113883,0.48484088,1954.5,1953.6,1.85568877]
[1771342114184,17.097233,1954.0,1953.4,0.0011]
[1771342114358,1.82049229,1953.9,1952.9,1.85509697]
[1771342114679,0.541,1953.8,1952.9,9.22084478]
[1771342114877,1.27936134,1954.1,1952.9,9.69832007]
[1771342115083,0.541,1954.1,1952.9,9.69832007]
[1771342115585,2.674346,1954.1,1952.9,9.69832007]
[1771342116159,1.76416778,1954.2,1952.9,9.69832007]
[1771342116382,2.30516778,1954.2,1952.9,9.69832007]
[1771342116585,2.30516778,1954.2,1953.0,0.47747529]
[1771342116791,2.151,1954.1,1953.0,0.47747529]
[1771342116953,1.02584088,1954.1,1952.9,9.22084478]
[1771342117967,1.8203269,1954.2,1952.9,9.69832007]
[1771342118281,0.48484088,1954.7,1953.2,7.8432231]
[1771342118580,1.27923041,1954.3,1953.4,1.2798198]
[1771342119657,0.541,1954.3,1953.4,1.2798198]
[1771342120574,0.48484088,1954.1,1953.3,1.85787581]
[1771342121382,0.48484088,1954.1,1953.3,1.8578838]
[1771342121682,1.2792555,1954.3,1953.3,1.8578838]
[1771342121857,1.8202555,1954.3,1953.3,1.8578838]
[1771342122258,0.48484088,1954.2,1953.3,1.8578838]
[1771342122685,1.27935815,1954.2,1953.3,1.8578838]
[1771342123278,8.13042315,1954.4,1953.3,1.8578838]
[1771342123459,5.302227,1954.3,1953.3,1.8578838]
[1771342123655,5.65772215,1954.4,1953.3,1.8578838]
[1771342124065,5.11672215,1954.4,1953.3,1.8578838]
[1771342124263,0.541,1954.3,1953.3,1.8578838]
[1771342124697,1.27929587,1954.2,1953.3,1.8578838]
[1771342125098,0.001,1954.1,1953.3,1.8578838]
[1771342127995,0.001,1954.1,1953.3,2.34878311]
[1771342128703,0.001,1954.1,1953.3,1.8578838]
[1771342131207,0.001,1954.1,1953.3,2.34878311]
[1771342131971,0.001,1954.1,1953.3,1.8578838]
[1771342132378,0.001,1954.1,1953.3,0.578]
[1771342132379,0.46959999,1954.1,1953.3,0.578]
[1771342132583,0.46959999,1954.1,1953.3,1.85788383]
[1771342133301,1.27942681,1954.0,1953.3,1.85788383]
[1771342133664,1.27942681,1954.0,1953.0,0.0011]
[1771342133665,0.46859999,1953.6,1953.0,0.0011]
[1771342133869,0.539,1953.5,1953.0,0.0011]
[1771342134608,0.46859999,1953.3,1953.0,0.0011]
[1771342134794,0.46859999,1953.3,1952.7,0.0011]
[1771342135194,0.46859999,1953.3,1952.1,1.86067209]
[1771342135507,0.46859999,1953.3,1951.9,5.12378838]
[1771342135508,0.46859999,1953.1,1951.9,0.0011]
[1771342135807,0.46859999,1952.9,1951.9,1.28189792]
[1771342138213,1.74855083,1953.2,1952.0,7.81800608]
[1771342138394,1.27992522,1953.3,1953.0,0.0011]
[1771342139779,1.81892522,1953.3,1953.0,0.0011]
[1771342139980,1.74852521,1953.3,1953.0,0.0011]
[1771342140207,2.28852521,1953.3,1952.8,0.0011]
[1771342140780,1.00959999,1953.2,1952.8,0.0011]
[1771342140980,0.46859999,1953.1,1952.8,0.0011]
[1771342141391,0.46859999,1952.9,1952.0,1.28070205]
[1771342141709,0.46859999,1952.9,1951.9,1.86089832]
[1771342141909,0.46859999,1952.9,1951.9,0.5801]
[1771342142115,0.46859999,1952.7,1951.9,0.0011]
[1771342142319,0.46859999,1952.6,1951.9,0.0011]
[1771342142888,0.46859999,1952.6,1951.8,0.0011]
[1771342143819,16.680987,1952.5,1951.8,0.0011]
[1771342144210,1.28047531,1952.4,1951.8,0.0011]
[1771342145519,0.46859999,1952.2,1951.8,0.0011]
[1771342145693,1.01059999,1952.2,1951.8,0.0011]
[1771342146230,1.01059999,1952.2,1950.9,1.28145616]
[1771342146231,17.88057199,1951.9,1950.9,1.28145616]
[1771342146448,17.88057199,1951.9,1950.6,5.12661597]
[1771342146449,0.46859999,1951.7,1950.6,1.28159496]
[1771342146731,0.46859999,1951.7,1950.5,5.57891367]
[1771342146732,0.46859999,1951.5,1950.5,1.28168961]
[1771342148704,1.28113149,1951.4,1950.4,5.1271054]
[1771342148994,1.74973148,1951.4,1950.4,1.28178835]
[1771342149295,1.74973148,1951.4,1950.3,1.85980102]
[1771342150522,0.46859999,1951.2,1950.2,1.28189409]
[1771342150825,0.46859999,1951.0,1950.1,2.2049781]
[1771342151121,0.46859999,1951.0,1950.1,0.923]
[1771342151323,0.46859999,1951.0,1950.1,2.2049776]
[1771342151525,0.46859999,1951.0,1950.0,0.3320822]
[1771342151707,14.006682,1950.8,1950.0,0.3320822]
[1771342151902,0.544,1950.7,1950.0,0.3320822]
[1771342152104,4.636486,1950.6,1950.0,0.3320822]
[1771342152306,4.636486,1950.6,1949.7,1.01477479]
[1771342152307,7.848885,1950.3,1949.7,1.01477479]
[1771342152498,0.46859999,1950.4,1949.7,2.29701826]
[1771342152697,1.28190061,1950.3,1949.7,1.01477479]
[1771342152905,0.544,1950.3,1949.7,2.29698112]
[1771342153198,1.82682012,1950.4,1949.7,1.01477479]
[1771342153616,0.46859999,1950.3,1949.7,1.01477479]
[1771342154222,0.57099999,1950.2,1948.7,1.86190655]
[1771342154423,0.46779072,1950.0,1948.7,1.86190655]
[1771342154724,0.1024,1950.2,1948.7,1.86190655]
[1771342154725,1.7499578,1949.9,1948.7,1.86190655]
[1771342154921,0.545,1949.8,1948.7,1.86190655]
[1771342155126,0.46779072,1950.2,1948.8,0.45084053]
[1771342155447,1.28198553,1950.1,1948.9,0.45084053]
[1771342155600,0.545,1950.1,1948.9,0.45084053]
[1771342155796,10.41174766,1950.4,1948.9,0.45084053]
[1771342155797,0.545,1950.3,1948.9,0.45084053]
[1771342156149,15.383938,1950.2,1948.9,0.45084053]
[1771342156425,4.089346,1950.2,1948.9,0.45084053]
[1771342156610,2.760801,1950.2,1948.9,0.45084053]
[1771342156817,0.545,1950.1,1949.0,1.73354961]
[1771342157765,0.545,1950.1,1949.0,1.28270908]
[1771342158041,0.545,1950.2,1949.1,0.45084053]
[1771342158240,0.545,1950.2,1949.2,1.02984053]
[1771342158446,5.22904032,1950.6,1949.3,0.45084053]
[1771342158447,5.12672232,1950.6,1949.3,0.45084053]
[1771342158613,2.084893,1950.5,1949.3,0.45084053]
[1771342158814,1.28177206,1950.5,1949.4,1.28244588]
[1771342159336,1.28177206,1950.5,1949.4,1.73328641]
[1771342159528,0.545,1950.4,1949.4,1.73328641]
[1771342159740,12.49206832,1950.9,1949.4,1.73328641]
[1771342159741,0.545,1950.8,1949.5,0.45084053]
[1771342159917,4.47270972,1950.7,1949.4,1.28244588]
[1771342160117,5.12589214,1950.9,1949.4,1.73328641]
[1771342160118,0.46779072,1950.6,1949.4,1.73328641]
[1771342160418,0.545,1950.5,1949.5,0.45084053]
[1771342160639,0.545,1950.5,1949.4,1.28244588]
[1771342161160,1.28178835,1950.4,1949.4,1.28244588]
[1771342161862,0.545,1950.4,1949.4,1.28244588]
[1771342162421,0.545,1950.4,1949.6,0.0011]
[1771342163155,1.74964479,1950.3,1949.6,0.0011]
[1771342164533,0.46779072,1950.2,1949.6,0.0011]
[1771342165042,5.12741629,1950.4,1949.6,0.0011]
[1771342165211,0.546,1950.2,1949.6,0.0011]
[1771342165841,0.546,1950.2,1949.4,1.16864588]
[1771342166025,0.546,1950.3,1949.4,1.16864588]
[1771342166215,5.0,1949.6,1949.4,1.16864588]
[1771342167016,0.546,1950.2,1949.4,1.16864588]
[1771342167215,1.2818835,1950.3,1949.4,1.16864588]
[1771342167849,1.8278835,1950.3,1949.4,1.16864588]
[1771342168357,1.2818835,1950.3,1949.4,1.16864588]
[1771342168559,1.8278835,1950.3,1949.4,1.61948641]
[1771342169517,1.2818835,1950.3,1949.4,1.61948641]
[1771342170225,1.1234835,1950.3,1949.4,1.61948641]
[1771342170954,5.12577783,1951.0,1949.4,1.61948641]
[1771342170955,0.46779072,1951.0,1949.6,0.45084053]
[1771342171117,0.46779072,1950.8,1949.7,1.03184053]
[1771342171519,1.28159122,1950.7,1949.8,1.28218278]
[1771342171758,1.28159122,1950.7,1949.8,1.73302331]
[1771342172129,0.546,1950.9,1949.9,0.45084053]
[1771342172463,1.82642613,1951.0,1949.9,0.45084053]
[1771342172980,1.82630943,1951.2,1949.9,0.45084053]
[1771342173171,1.7489683,1951.4,1950.2,0.45084053]
[1771342173326,0.545,1951.6,1950.5,0.45084053]
[1771342173526,4.79411541,1951.6,1950.6,1.28165692]
[1771342173726,1.28104341,1951.6,1950.6,1.28165692]
[1771342173972,0.46779072,1951.7,1950.6,1.28165692]
[1771342174148,0.001,1952.2,1950.9,6.83051777]
[1771342174454,1.74939894,1952.2,1951.0,1.37484053]
[1771342174657,0.001,1952.2,1951.2,0.45084053]
[1771342174844,1.28160683,1952.2,1951.2,0.45084053]
[1771342175046,1.74939755,1952.2,1951.1,0.582]
[1771342175643,1.74939755,1952.2,1951.2,1.28126281]
[1771342175958,0.001,1952.2,1951.3,0.45084053]
[1771342176958,0.001,1952.2,1951.5,7.2813583]
[1771342177259,0.001,1952.2,1951.6,0.581]
[1771342177458,0.001,1952.2,1951.7,0.45084053]
[1771342177973,2.323094,1952.8,1951.8,1.73170947]
[1771342178263,1.28012596,1953.0,1951.8,1.28086894]
[1771342178463,2.912859,1953.3,1951.9,0.45084053]
[1771342178637,2.912859,1953.3,1951.8,8.11138671]
[1771342178638,0.545,1953.3,1952.0,1.03284053]
[1771342178841,0.545,1953.3,1952.2,0.45084053]
[1771342179041,6.83051777,1953.7,1952.2,0.45084053]
[1771342179042,2.792601,1953.5,1952.4,6.83051777]
[1771342179268,2.792601,1953.5,1952.5,1.03284053]
[1771342179467,1.74821844,1954.0,1952.7,0.45084053]
[1771342179660,1.82442772,1954.0,1952.7,0.45084053]
[1771342179864,0.46779072,1953.8,1952.7,5.12097908]
[1771342180237,2.447491,1953.8,1952.7,1.28027858]
[1771342180538,2.052831,1953.6,1952.7,1.28027858]
[1771342180833,1.74821844,1954.0,1952.7,1.28027858]
[1771342181037,3.001337,1953.6,1952.7,1.28027858]
[1771342181271,3.017042,1953.6,1952.7,1.28027858]
[1771342181643,1.01179072,1953.7,1952.7,1.28027858]
[1771342181840,5.11805575,1953.9,1952.7,1.28027858]
[1771342182035,4.562446,1953.8,1952.7,1.28027858]
[1771342182272,0.544,1953.8,1952.7,1.28027858]
[1771342182836,2.232949,1953.8,1952.7,1.28027858]
[1771342183466,3.426747,1953.8,1952.7,1.28027858]
[1771342183966,0.46779072,1953.6,1952.7,1.28027858]
[1771342184172,1.27962327,1953.7,1952.7,1.28027858]
[1771342184480,5.11849311,1953.8,1952.7,1.28027858]
[1771342184481,1.82358992,1953.8,1952.7,1.28027858]
[1771342184647,1.27958992,1953.8,1952.7,1.28027858]
[1771342185043,1.28043438,1954.0,1952.8,0.48030273]
[1771342185248,0.545,1953.9,1952.8,0.48030273]
[1771342186077,1.28043438,1954.0,1952.8,0.48030273]
[1771342186078,1.28044176,1954.0,1953.0,0.48030273]
[1771342186287,13.410707,1953.8,1952.9,1.28014747]
[1771342186747,13.410707,1953.8,1952.8,1.86316262]
[1771342186748,13.516439,1953.7,1952.8,1.86316262]
[1771342186955,0.46086794,1953.8,1952.8,1.86316262]
[1771342187569,1.28044176,1954.0,1952.5,0.583]
[1771342187570,0.46086794,1953.4,1952.5,0.583]
[1771342187770,0.545,1953.3,1952.5,0.583]
[1771342187943,1.27995084,1953.2,1952.5,0.583]
[1771342188749,1.27995084,1953.2,1952.3,1.28051479]
[1771342188750,1.27995084,1953.2,1952.4,1.28046512]
[1771342189846,1.74081878,1953.2,1952.2,1.86355528]
[1771342190259,1.27995084,1953.2,1952.2,1.86360594]
[1771342190463,0.46086794,1953.0,1952.2,0.583]
[1771342191374,0.46086794,1952.8,1952.0,0.923]
[1771342191577,8.11046861,1953.2,1952.0,2.2037374]
[1771342191578,0.545,1952.9,1952.0,2.2037374]
[1771342191758,0.545,1952.9,1952.0,2.68404013]
[1771342191953,1.27993719,1953.3,1952.0,9.5145579]
[1771342192155,0.545,1953.2,1952.0,9.5145579]
[1771342192380,1.27987356,1953.4,1952.1,0.45048583]
[1771342192554,1.82487356,1953.4,1952.1,0.45048583]
[1771342192750,1.27987356,1953.4,1952.1,0.45048583]
[1771342192955,0.545,1953.4,1952.3,0.45048583]
[1771342193284,1.28067509,1953.7,1952.5,0.45048583]
[1771342193585,0.001,1953.7,1952.6,0.45048583]
[1771342193874,0.001,1953.7,1952.7,1.73076441]
[1771342194079,0.001,1953.7,1952.8,0.582]
[1771342194264,0.001,1953.7,1952.8,7.8630036]
[1771342194582,0.001,1953.7,1952.9,0.45048583]
[1771342195957,0.001,1953.7,1953.1,1.28001638]
[1771342196182,0.001,1953.7,1953.2,0.582]
[1771342198051,0.001,1953.7,1953.3,1.27988532]
[1771342200252,0.001,1953.7,1952.9,1.28008192]
[1771342200454,0.001,1954.0,1953.3,6.83051777]
[1771342200661,0.47345423,1954.8,1953.6,6.83051777]
[1771342200949,0.001,1954.8,1953.9,7.2810036]
[1771342201220,0.001,1954.8,1954.2,6.83051777]
[1771342201391,0.001,1955.0,1954.2,6.83051777]
[1771342201392,0.001,1955.0,1954.5,6.83051777]
[1771342201699,0.001,1955.0,1954.2,0.585]
[1771342201901,0.001,1955.0,1954.3,6.83051777]
[1771342202187,0.20511716,1955.5,1954.7,0.45048583]
[1771342202492,0.20511716,1955.5,1954.8,0.585]
[1771342202493,1.48359003,1955.5,1954.8,0.585]
[1771342202788,1.48359003,1955.5,1954.7,0.586]
[1771342202961,0.47245423,1955.3,1954.3,0.585]
[1771342203169,0.47245423,1955.1,1954.0,1.27937858]
[1771342203388,0.47245423,1955.1,1954.0,0.585]
[1771342203687,3.79280423,1954.7,1953.7,2.20261234]
[1771342203983,6.93291777,1955.2,1953.7,2.20261234]
[1771342203984,5.183176,1955.0,1953.7,2.20261234]
[1771342204185,1.27890321,1954.8,1953.7,2.20261234]
[1771342204372,0.47245423,1954.7,1953.7,2.20261234]
[1771342204683,0.47245423,1954.5,1953.7,0.923]
[1771342205465,0.47245423,1954.5,1953.3,1.27985666]
[1771342205664,0.47245423,1954.4,1953.2,1.27995084]
[1771342205865,0.47245423,1954.1,1953.1,0.585]
[1771342206067,0.47245423,1953.9,1952.8,2.20217093]
[1771342206275,1.27955778,1953.8,1952.8,2.20217093]
[1771342206578,0.47245423,1953.7,1952.8,0.922]
[1771342206778,0.47245423,1953.7,1952.8,2.20220291]
[1771342206977,0.47245423,1953.7,1952.8,0.922]
[1771342207197,11.037213,1953.6,1952.8,0.922]
[1771342207396,2.36545,1953.6,1952.8,2.20220148]
[1771342207605,0.47245423,1953.7,1952.8,2.20219226]
[1771342208177,11.9487489,1953.9,1952.8,9.03271003]
[1771342208178,3.591858,1953.9,1952.8,9.03271003]
[1771342208381,1.27955778,1953.8,1952.8,2.20219226]
[1771342208889,1.27942681,1954.0,1952.8,2.20219226]
[1771342209092,1.27942681,1954.0,1952.8,2.65267809]
[1771342209257,1.75155374,1954.5,1953.0,6.83051777]
[1771342209462,15.062823,1954.4,1953.2,0.45048583]
[1771342209776,1.75155374,1954.5,1953.2,0.45048583]
[1771342210086,2.15665,1954.4,1953.2,0.45048583]
[1771342210268,1.27923041,1954.3,1953.1,1.28001638]
[1771342210482,1.27923041,1954.3,1953.3,0.586]
[1771342210676,1.75168464,1954.3,1953.3,0.586]
[1771342211081,1.27913462,1954.5,1953.3,0.586]
[1771342211383,3.186504,1954.4,1953.3,0.586]
[1771342211585,1.27913462,1954.5,1953.3,0.586]
[1771342211586,0.47245423,1954.3,1953.3,0.586]
[1771342212522,13.307051,1953.8,1952.6,1.86634415]
[1771342212664,0.543,1953.7,1952.6,1.86634415]
[1771342213025,0.47245423,1953.6,1952.6,1.86634415]
[1771342213762,1.01445423,1953.6,1952.6,1.86634415]
[1771342213961,0.47245423,1953.9,1952.6,1.86634415]
[1771342214167,0.001,1954.0,1952.7,7.2810036]
[1771342214393,1.27955778,1953.8,1952.8,1.28021302]
[1771342214577,1.279539,1953.9,1952.8,1.28021302]
[1771342214777,0.542,1953.9,1952.8,1.28021302]
[1771342214963,2.164023,1953.9,1952.8,1.76350589]
[1771342215409,2.164023,1953.9,1952.8,1.28021302]
[1771342215567,0.001,1954.0,1952.8,1.76350589]
[1771342216181,1.28042869,1954.0,1952.8,1.76350589]
[1771342216383,1.27955778,1953.8,1952.7,5.1208521]
[1771342216691,2.02599,1953.7,1952.7,5.1208521]
[1771342217060,1.82255778,1953.8,1952.7,5.1208521]
[1771342217269,1.27953873,1953.9,1952.7,5.60414497]
[1771342217484,1.28046839,1954.0,1952.8,0.48329287]
[1771342217886,0.001,1954.0,1952.8,0.48329287]
[1771342218087,0.001,1954.0,1953.0,6.83051777]
[1771342218287,0.001,1954.0,1953.1,0.587]
[1771342218470,0.001,1954.0,1953.2,1.27995084]
[1771342219964,0.001,1954.0,1953.3,0.48329287]
[1771342220296,0.001,1954.0,1952.9,1.28014747]
[1771342220593,0.001,1954.0,1952.7,12.43440053]
[1771342220594,0.001,1954.0,1953.0,0.588]
[1771342220801,7.532254,1953.9,1953.0,1.86803007]
[1771342220993,0.46301059,1953.7,1952.7,0.922]
[1771342221196,0.46301059,1953.7,1952.7,2.20226727]
[1771342221695,15.17243559,1953.6,1952.7,2.20227341]
[1771342221909,0.46301059,1953.6,1952.7,2.20227341]
[1771342222225,0.542,1953.8,1952.7,2.20227341]
[1771342222428,0.001,1954.0,1953.0,6.83051777]
[1771342222632,0.001,1954.0,1953.2,0.48329287]
[1771342222910,0.001,1954.0,1953.4,0.48329287]
[1771342223117,0.001,1954.0,1953.5,0.588]
[1771342224814,0.001,1954.0,1953.6,1.27968877]
[1771342225183,0.001,1954.0,1953.5,1.86771261]
[1771342227013,0.001,1954.0,1953.5,0.588]
[1771342227321,0.001,1954.0,1953.4,0.922]
[1771342227510,0.001,1954.0,1953.2,0.59]
[1771342227718,0.001,1954.0,1953.2,1.86994401]
[1771342229119,0.001,1954.0,1953.1,0.5911]
[1771342230123,11.528377,1953.9,1953.1,0.0011]
[1771342230328,12.068377,1953.9,1953.1,0.0011]
[1771342230510,12.068377,1953.9,1952.8,0.0011]
[1771342230511,11.51537359,1953.6,1952.8,0.0011]
[1771342230712,11.53512359,1953.5,1952.8,0.0011]
[1771342230915,0.46301059,1953.5,1952.8,0.0011]
[1771342231118,1.2798198,1953.4,1952.8,0.0011]
[1771342231302,1.74280351,1953.5,1952.8,0.0011]
[1771342231618,1.82055778,1953.8,1952.8,0.0011]
[1771342231819,1.82054646,1953.9,1952.8,0.0011]
[1771342232323,0.541,1953.9,1952.8,0.0011]
[1771342232522,1.28045594,1954.0,1952.8,0.5891]
[1771342232710,0.001,1954.0,1952.8,1.07239287]
[1771342232913,0.001,1954.0,1953.0,0.48329287]
[1771342233113,0.001,1954.0,1953.1,1.76330925]
[1771342233316,0.001,1954.0,1953.2,7.85241907]
[1771342233515,0.001,1954.0,1953.3,0.588]
[1771342233822,0.001,1954.0,1953.3,1.99329287]
[1771342234144,0.001,1954.0,1953.3,1.51]
[1771342234647,0.001,1954.0,1953.1,1.28001638]
[1771342234798,0.001,1954.0,1953.3,0.589]
[1771342235308,0.001,1954.0,1953.3,1.86884896]
[1771342237449,0.001,1954.0,1953.3,0.589]
[1771342237751,0.46401059,1954.0,1953.0,0.922]
[1771342238053,15.641826,1953.9,1953.0,2.20207064]
[1771342238225,0.001,1954.0,1953.0,2.20207064]
[1771342238409,0.54,1954.0,1953.0,2.20207064]
[1771342238830,0.001,1954.0,1953.0,2.20207064]
[1771342239364,0.001,1954.0,1953.1,0.0011]
[1771342241550,0.46301059,1953.8,1953.1,0.0011]
[1771342242243,0.001,1954.0,1953.1,0.0011]
[1771342242450,0.539,1954.0,1953.1,0.0011]
[1771342242761,0.001,1954.0,1953.1,0.0011]
[1771342243535,17.102773,1953.9,1953.1,0.0011]
[1771342243733,0.46401059,1954.0,1953.1,0.0011]
[1771342243929,1.00301059,1954.0,1953.1,0.0011]
[1771342244453,2.384044,1953.9,1953.1,0.0011]
[1771342244643,1.00301059,1954.0,1953.1,0.0011]
[1771342244848,0.001,1954.0,1953.1,0.0011]
[1771342245239,19.04928617,1953.9,1953.1,0.0011]
[1771342245436,0.45441917,1953.9,1953.1,0.0011]
[1771342245661,0.001,1954.0,1953.1,0.0011]
[1771342245861,0.541,1954.0,1953.1,0.0011]
[1771342246881,0.001,1954.0,1953.1,0.0011]
[1771342247060,17.212562,1953.9,1953.1,0.0011]
[1771342247267,1.27968877,1953.6,1953.1,0.0011]
[1771342247465,1.27968877,1953.6,1952.4,1.28044871]
[1771342247466,11.497846,1953.3,1952.4,1.28044871]
[1771342247769,16.844968,1953.2,1952.3,1.87261325]
[1771342247955,16.844968,1953.2,1952.3,0.5921]
[1771342248264,16.844968,1953.2,1952.3,1.28163896]
[1771342248565,16.844968,1953.2,1952.0,0.5921]
[1771342248566,0.45441917,1952.9,1952.0,0.5921]
[1771342248858,2.6604,1952.8,1952.0,1.87283367]
[1771342249060,0.541,1952.8,1952.0,1.87283367]
[1771342249460,5.11992248,1953.2,1952.0,1.87283367]
[1771342249661,3.237042,1953.1,1952.0,1.87283367]
[1771342250364,2.2434,1953.1,1952.0,1.87283367]
[1771342250552,1.7343496,1953.3,1952.0,2.35787978]
[1771342250762,0.541,1953.2,1952.0,2.35787978]
[1771342250956,1.7343496,1953.3,1952.0,2.35787978]
[1771342251162,2.2753496,1953.3,1952.0,2.35787978]
[1771342252075,15.746986,1953.2,1952.0,2.35787978]
[1771342252270,15.746986,1953.2,1952.1,0.0011]
[1771342252271,13.050384,1953.2,1952.1,0.0011]
[1771342252456,11.428284,1953.2,1952.1,0.0011]
[1771342252949,0.542,1953.1,1952.1,0.0011]
[1771342253162,0.542,1953.6,1952.4,0.48797764]
[1771342253342,0.542,1953.6,1952.5,0.592]
[1771342253543,0.001,1953.9,1952.7,0.48797764]
[1771342253754,0.001,1953.9,1952.8,1.76819066]
[1771342253966,0.001,1953.9,1952.9,0.592]
[1771342254250,0.001,1953.9,1952.9,1.07997764]
[1771342254777,0.001,1953.9,1953.1,0.48797764]
[1771342254944,0.001,1953.9,1953.0,0.923]
[1771342254945,0.001,1953.9,1953.3,0.48797764]
[1771342255145,0.001,1953.9,1953.4,1.07997764]
[1771342255577,1.27894141,1954.8,1953.6,0.48797764]
[1771342255793,5.65747978,1954.9,1953.7,1.27962327]
[1771342255794,1.82086245,1954.9,1953.7,1.27962327]
[1771342255960,1.82086245,1954.9,1953.8,0.593]
[1771342256152,0.001,1954.9,1953.8,1.08097764]
[1771342256358,1.27984064,1954.9,1953.8,1.08097764]
[1771342256670,0.001,1954.9,1953.9,0.48797764]
[1771342257484,0.001,1954.9,1953.8,0.593]
[1771342257485,1.77646997,1954.9,1953.8,0.593]
[1771342257847,1.77646997,1954.9,1953.9,1.27949229]
[1771342258485,0.001,1954.9,1953.9,1.27949229]
[1771342259278,1.2798409,1954.9,1953.9,1.27949229]
[1771342259479,0.001,1954.9,1953.9,1.27949229]
[1771342260485,0.001,1954.9,1954.2,7.85710384]
[1771342260690,0.1024,1955.8,1954.5,7.85710384]
[1771342260691,1.2782493,1955.8,1954.5,7.85710384]
[1771342260906,1.2782493,1955.8,1953.9,1.27949229]
[1771342260907,0.49661493,1955.6,1954.0,0.48797764]
[1771342261193,0.49661493,1955.4,1954.0,0.595]
[1771342261368,8.42473,1955.1,1954.0,0.595]
[1771342261750,3.529698,1955.1,1954.0,0.595]
[1771342261955,0.49661493,1955.0,1954.0,0.595]
[1771342262293,1.27890321,1954.8,1954.0,0.595]
[1771342262500,0.49661493,1954.6,1953.6,0.595]
[1771342262788,0.542,1954.5,1953.6,0.595]